bitfinex-derivatives/quotes_ETHF0:USTF0_20260119
["timestamp","ask_amount","ask_price","bid_price","bid_amount"]
[1768864634636,0.91347033,3172.8,3170.9,3.156]
[1768864634841,0.00272291,3172.9,3171.3,0.32473447]
[1768864635044,0.00272291,3172.9,3171.4,0.16697447]
[1768864635749,0.00272291,3172.9,3170.9,3.156]
[1768864636151,0.00272291,3172.9,3170.9,3.31378]
[1768864636450,0.00272291,3172.9,3171.0,0.16697447]
[1768864636640,0.00272291,3172.9,3171.5,0.16697447]
[1768864637233,0.00272291,3172.9,3170.9,6.58956945]
[1768864637234,0.00272291,3172.9,3171.8,0.16697447]
[1768864637438,0.000865,3173.8,3171.8,0.16697447]
[1768864637640,0.91217986,3173.7,3171.8,0.16697447]
[1768864637842,0.000865,3173.8,3171.9,0.16697447]
[1768864638042,0.9121789,3173.7,3171.9,0.16697447]
[1768864638242,0.15762,3174.1,3171.9,0.16697447]
[1768864638443,0.91217581,3174.0,3171.9,0.16697447]
[1768864638637,0.00396873,3173.8,3171.2,0.16697447]
[1768864638950,0.00396873,3173.6,3171.2,3.47973447]
[1768864639148,0.00218623,3173.4,3171.2,3.47973447]
[1768864639452,1.5863051,3174.0,3171.5,0.16697447]
[1768864639453,0.91217581,3173.3,3171.5,0.16697447]
[1768864639645,0.15765,3173.7,3171.5,0.16697447]
[1768864639846,0.91301786,3173.6,3171.5,0.16697447]
[1768864640048,0.91301786,3173.5,3171.5,0.16697447]
[1768864640243,0.91301786,3173.4,3171.5,0.16697447]
[1768864640440,1.10665657,3173.9,3171.7,0.16697447]
[1768864640648,0.91311897,3173.8,3171.8,0.16697447]
[1768864640847,0.91311897,3173.7,3171.8,0.16697447]
[1768864641042,0.00117518,3173.8,3171.5,0.15775]
[1768864641247,0.00117518,3173.4,3171.3,0.16697447]
[1768864641550,0.00117518,3173.2,3171.3,0.16697447]
[1768864641848,0.00117518,3173.0,3170.9,3.31278]
[1768864642252,0.15766,3173.4,3170.7,0.16697447]
[1768864642253,1.07043207,3172.9,3170.7,0.16697447]
[1768864642439,0.91275207,3172.8,3170.7,0.16697447]
[1768864642637,0.91275207,3172.7,3170.3,0.15781]
[1768864642949,1.07045207,3172.6,3170.4,0.16697447]
[1768864643142,0.91275207,3172.5,3170.4,0.16697447]
[1768864643452,0.91275207,3172.4,3170.4,0.32477447]
[1768864643645,0.91319192,3172.3,3170.4,0.32477447]
[1768864643840,0.1577,3172.6,3170.4,0.32477447]
[1768864644037,1.26217034,3172.6,3170.4,0.1578]
[1768864644338,1.10447034,3172.2,3170.1,0.00332679]
[1768864644541,1.10447034,3172.1,3170.1,0.00332679]
[1768864644739,0.91319048,3172.0,3170.1,0.15754931]
[1768864644941,0.91319048,3171.9,3170.1,0.15754931]
[1768864645144,1.26218034,3172.3,3170.1,0.15754931]
[1768864645350,0.91355124,3172.2,3170.1,0.15754931]
[1768864645652,0.91355124,3172.1,3170.1,0.15754931]
[1768864645844,0.91355124,3172.0,3170.1,0.15754931]
[1768864646037,0.91355124,3171.9,3170.1,0.15754931]
[1768864646237,1.26218034,3172.3,3170.1,0.15754931]
[1768864646440,0.91380581,3172.2,3170.1,0.15754931]
[1768864646638,0.91380581,3172.2,3170.1,0.00332679]
[1768864646639,2.01827615,3172.1,3170.1,0.00332679]
[1768864646846,3.43974564,3171.8,3170.1,0.00332679]
[1768864647049,0.91380581,3171.7,3170.1,0.00332679]
[1768864647248,0.91380581,3171.6,3170.1,0.00332679]
[1768864647455,0.91380581,3171.5,3170.1,0.00332679]
[1768864647646,3.44272051,3171.8,3170.1,0.00332679]
[1768864647847,0.9135782,3171.7,3170.1,0.00332679]
[1768864648042,0.9135782,3171.6,3170.1,0.00332679]
[1768864648252,0.9135782,3171.5,3170.1,0.00332679]
[1768864648447,0.00297487,3171.8,3170.1,0.00332679]
[1768864648757,0.91360133,3171.7,3170.1,0.00332679]
[1768864648951,0.91360133,3171.6,3170.1,0.00332679]
[1768864649253,0.00297487,3171.8,3170.1,0.00332679]
[1768864649439,0.91357163,3171.7,3170.1,0.00332679]
[1768864649643,0.91357163,3171.6,3170.1,0.00332679]
[1768864649842,0.00297487,3171.8,3170.1,0.00332679]
[1768864650043,0.91357098,3171.7,3170.1,0.00332679]
[1768864650241,0.91357098,3171.6,3170.1,0.00332679]
[1768864650446,0.00297487,3171.8,3170.1,0.00332679]
[1768864650652,0.91369316,3171.7,3170.1,0.00332679]
[1768864650952,0.00297487,3171.8,3170.1,0.00332679]
[1768864650953,0.91369316,3171.6,3170.1,0.00332679]
[1768864651153,0.00297487,3171.8,3170.1,0.00332679]
[1768864651345,0.91427089,3171.7,3170.1,0.00332679]
[1768864651544,0.00297487,3171.8,3170.1,0.00332679]
[1768864651545,0.91427089,3171.6,3170.1,0.00332679]
[1768864651745,0.91427089,3171.5,3170.1,0.00332679]
[1768864651950,0.00297487,3171.8,3170.1,0.00332679]
[1768864652258,0.91435494,3171.7,3170.1,0.00332679]
[1768864652445,0.91435494,3171.6,3170.1,0.00332679]
[1768864652644,0.00297487,3171.8,3170.1,0.15754931]
[1768864653658,0.91506135,3171.7,3170.1,0.00332679]
[1768864653860,0.91506135,3171.6,3170.1,0.00332679]
[1768864654042,0.91506135,3171.5,3170.1,0.00332679]
[1768864654247,0.91506135,3171.4,3170.1,0.00332679]
[1768864654549,1.10744521,3171.8,3170.1,0.00332679]
[1768864654753,0.91506077,3171.7,3170.1,0.00332679]
[1768864654955,0.91506077,3171.6,3170.1,0.00332679]
[1768864655150,0.91506077,3171.5,3170.1,0.00332679]
[1768864655345,1.10744521,3171.8,3170.1,0.00332679]
[1768864655346,0.91506077,3171.4,3170.1,0.00332679]
[1768864655548,0.91506077,3171.3,3170.1,0.00332679]
[1768864655747,0.91506077,3171.2,3170.1,0.00332679]
[1768864655949,0.91506077,3171.1,3170.1,0.00332679]
[1768864656255,0.91506077,3171.0,3170.1,0.00332679]
[1768864656560,1.26223034,3171.4,3169.0,0.15422252]
[1768864656748,2.01948484,3171.3,3169.0,0.15422252]
[1768864657046,3.59752564,3171.0,3169.0,0.15422252]
[1768864657250,0.9150145,3170.9,3169.0,0.15422252]
[1768864657454,0.9150145,3170.8,3169.0,0.15422252]
[1768864657642,0.9150145,3170.7,3169.0,0.15711609]
[1768864657843,3.59752564,3171.0,3169.0,0.15711609]
[1768864658156,0.91467439,3170.9,3169.0,0.15711609]
[1768864658458,0.91467439,3170.8,3169.0,0.15711609]
[1768864658659,0.91467439,3170.7,3169.0,0.00289357]
[1768864658861,0.91467439,3170.6,3169.0,0.00289357]
[1768864659055,1.26226034,3170.8,3169.0,0.00289357]
[1768864659056,0.91467439,3170.5,3169.0,0.00289357]
[1768864659262,1.10447034,3171.1,3169.0,0.15711609]
[1768864659558,0.91404009,3171.0,3169.0,0.15711609]
[1768864659754,0.91404009,3170.9,3169.0,0.15711609]
[1768864659952,1.5863051,3171.3,3169.0,0.15711609]
[1768864659953,1.10447034,3171.3,3169.0,0.15711609]
[1768864660164,0.91412551,3171.2,3169.0,0.15711609]
[1768864660458,0.91412551,3171.1,3169.0,0.15711609]
[1768864660760,0.91412551,3171.0,3169.2,0.15422252]
[1768864660957,3.43974564,3171.0,3169.0,0.00289357]
[1768864661158,0.15779,3170.8,3169.0,0.00289357]
[1768864661357,0.91650527,3170.7,3169.0,0.00289357]
[1768864661559,0.15779,3170.8,3169.0,0.00289357]
[1768864661760,0.91615839,3170.7,3169.0,0.00289357]
[1768864661953,0.15779,3170.8,3169.0,0.00289357]
[1768864662264,0.91616407,3170.7,3169.0,0.00289357]
[1768864662450,0.15779,3170.8,3169.0,0.00289357]
[1768864662654,0.91587255,3170.7,3169.0,0.00289357]
[1768864662860,1.10447034,3171.2,3169.0,0.16051661]
[1768864663061,0.91590273,3171.1,3169.0,0.16051661]
[1768864663264,1.07368273,3171.0,3169.0,0.16051661]
[1768864663453,0.91590273,3170.9,3169.0,0.16051661]
[1768864663654,0.91590273,3170.8,3169.0,0.16051661]
[1768864663854,0.15778,3171.0,3169.0,0.16051661]
[1768864664054,0.91566692,3170.9,3169.0,0.16051661]
[1768864664260,1.10447034,3171.2,3169.0,0.16051661]
[1768864664461,0.91561832,3171.1,3169.0,0.16051661]
[1768864664766,0.91561832,3171.0,3169.0,0.16051661]
[1768864664955,0.91561832,3170.9,3169.0,0.16051661]
[1768864665154,1.10447034,3171.3,3169.0,0.16051661]
[1768864665354,0.91562233,3171.2,3169.0,0.16051661]
[1768864665561,0.91562233,3171.1,3169.1,0.15762304]
[1768864665761,0.91562233,3171.0,3169.1,0.31549304]
[1768864665954,1.26223034,3171.4,3169.2,0.15762304]
[1768864666149,1.26223034,3171.4,3169.0,0.00289357]
[1768864666150,0.91576775,3171.3,3169.4,0.15762304]
[1768864666356,1.10447034,3171.7,3169.7,0.15762304]
[1768864666660,0.91609568,3171.6,3169.7,0.15762304]
[1768864666855,0.91609568,3171.5,3169.7,0.15762304]
[1768864667159,0.91609568,3171.4,3169.7,0.15762304]
[1768864667360,1.10744521,3171.8,3169.7,0.15762304]
[1768864667556,0.91672896,3171.7,3169.7,0.15762304]
[1768864667757,0.91672896,3171.6,3169.7,0.15762304]
[1768864667959,0.91672896,3171.5,3169.7,0.15762304]
[1768864668262,0.91672896,3171.4,3169.7,0.15762304]
[1768864668455,1.10744521,3171.8,3169.7,0.15762304]
[1768864668657,0.91751007,3171.7,3169.7,0.15762304]
[1768864668962,0.91751007,3171.6,3169.7,0.15762304]
[1768864669154,0.91751007,3171.5,3169.7,0.15762304]
[1768864669350,0.91751007,3171.5,3169.6,0.15785]
[1768864669351,1.10744521,3171.8,3169.9,3.43974564]
[1768864669556,0.00297487,3171.8,3170.2,0.15762304]
[1768864670065,0.00297487,3171.8,3170.5,0.15762304]
[1768864670363,0.00297487,3171.8,3170.9,0.31540304]
[1768864670550,1.10447034,3173.3,3171.3,0.15776]
[1768864670750,2.02365582,3173.3,3171.3,0.31538304]
[1768864670954,0.91918548,3173.2,3171.5,0.15762304]
[1768864671159,1.10447034,3173.7,3171.5,0.15762304]
[1768864671460,0.91927496,3173.6,3171.7,0.15774]
[1768864671657,0.91927496,3173.5,3171.7,0.15774]
[1768864671850,0.00370119,3173.7,3171.5,0.16113987]
[1768864672059,0.91904983,3173.6,3172.0,0.15772]
[1768864672358,0.00370119,3173.7,3172.0,0.15772]
[1768864672561,0.00370119,3173.7,3172.0,0.31534304]
[1768864672763,0.00370119,3173.7,3172.1,0.15762304]
[1768864673354,0.91869661,3173.6,3171.5,0.16220089]
[1768864673666,0.91869661,3173.5,3171.8,0.31642406]
[1768864673859,0.00370119,3173.7,3171.8,0.15774]
[1768864674065,0.91872161,3173.6,3171.8,0.15774]
[1768864674268,0.00370119,3173.7,3171.6,3.155]
[1768864674765,0.00370119,3173.7,3171.9,0.15868406]
[1768864675557,0.00370119,3173.7,3171.8,0.15774]
[1768864676162,0.91742153,3173.6,3171.8,0.15774]
[1768864676467,0.00370119,3173.7,3171.8,0.15774]
[1768864676664,0.91697505,3173.6,3171.8,0.15774]
[1768864676866,0.00370119,3173.7,3171.8,0.15774]
[1768864677267,0.00370119,3173.7,3171.8,0.31642406]
[1768864677561,0.00370119,3173.7,3171.9,0.15868406]
[1768864677967,0.00370119,3173.7,3172.0,0.15868406]
[1768864679962,0.00370119,3173.7,3171.5,0.16220089]
[1768864679963,3.43974564,3173.5,3171.5,0.16220089]
[1768864680467,0.00370119,3173.7,3171.5,0.16220089]
[1768864680663,0.00370119,3173.7,3171.8,0.15868406]
[1768864681364,0.00370119,3173.7,3171.5,0.16220089]
[1768864681365,3.44344683,3173.7,3171.5,0.16220089]
[1768864681873,0.91494552,3173.6,3171.5,0.16220089]
[1768864682069,3.44344683,3173.7,3171.5,0.16220089]
[1768864682070,0.16134119,3173.7,3171.5,0.16220089]
[1768864682269,0.00370119,3173.7,3171.7,0.15868406]
[1768864683071,3.43974564,3173.4,3171.5,0.00351683]
[1768864683767,0.16134119,3173.7,3171.5,0.16220089]
[1768864684264,0.16134119,3173.7,3171.5,3.60194653]
[1768864684265,0.00370119,3173.7,3171.5,3.60194653]
[1768864684574,0.00370119,3173.7,3171.7,0.15868406]
[1768864685568,0.00370119,3173.7,3171.7,0.31642406]
[1768864685773,0.00370119,3173.7,3171.8,0.15868406]
[1768864686370,0.00370119,3173.7,3172.0,0.15868406]
[1768864686565,0.00370119,3173.7,3172.1,0.31640406]
[1768864686765,0.00370119,3173.7,3172.2,0.15868406]
[1768864687172,0.00370119,3173.7,3172.2,0.31639406]
[1768864687375,0.00370119,3173.7,3172.3,0.15868406]
[1768864687669,0.00370119,3173.7,3172.6,0.15868406]
[1768864687872,1.35630009,3175.1,3172.7,0.15868406]
[1768864688177,0.15759,3174.7,3172.7,0.15868406]
[1768864688363,0.91606345,3174.6,3172.7,0.15868406]
[1768864688567,3.43974564,3174.3,3171.9,0.15773]
[1768864688771,0.91580084,3174.2,3171.9,0.15773]
[1768864688973,3.44377425,3174.3,3171.9,0.15773]
[1768864689168,3.44377425,3174.3,3172.0,0.15868406]
[1768864689368,0.91604179,3174.2,3172.0,0.15868406]
[1768864689571,1.07358184,3174.1,3172.0,0.15868406]
[1768864689772,3.44377425,3174.3,3171.5,3.15751683]
[1768864689773,0.15763,3173.9,3171.5,3.31620089]
[1768864689972,0.15763,3173.9,3171.9,0.15868406]
[1768864691872,1.10849895,3174.3,3172.0,0.15868406]
[1768864692175,0.91684653,3174.2,3172.0,0.15868406]
[1768864692371,0.91684653,3174.1,3172.0,0.15868406]
[1768864692581,0.16163861,3174.3,3172.0,0.15868406]
[1768864692874,0.91751037,3174.2,3172.0,0.15868406]
[1768864693068,0.91751037,3174.1,3172.0,0.15868406]
[1768864693268,0.16163861,3174.3,3172.3,0.15868406]
[1768864693468,0.91822309,3174.2,3172.3,0.15868406]
[1768864693678,0.00402861,3174.3,3172.4,0.15868406]
[1768864695378,0.91988407,3174.2,3172.4,0.15868406]
[1768864695676,0.00402861,3174.3,3172.4,0.15868406]
[1768864695875,0.91989601,3174.2,3172.4,0.15868406]
[1768864696077,0.00402861,3174.3,3172.4,0.15868406]
[1768864696276,0.91989512,3174.2,3172.4,0.15868406]
[1768864696477,0.91989512,3174.1,3172.4,0.15868406]
[1768864696677,0.00402861,3174.3,3172.4,0.15868406]
[1768864696879,0.92070826,3174.2,3172.4,0.15868406]
[1768864697180,0.00402861,3174.3,3172.4,0.15868406]
[1768864697181,0.92070826,3174.1,3172.4,0.15868406]
[1768864697381,0.92070826,3174.0,3172.4,0.15868406]
[1768864697581,0.00402861,3174.3,3172.4,0.15868406]
[1768864697883,2.03015119,3174.3,3172.4,0.15868406]
[1768864698180,1.10447034,3174.1,3171.8,3.31268406]
[1768864698382,2.02612258,3174.0,3171.9,0.15868406]
[1768864698582,0.00402861,3174.3,3171.9,0.15868406]
[1768864698583,1.10447034,3173.7,3171.9,0.15868406]
[1768864699373,1.10447034,3173.5,3171.9,0.15868406]
[1768864699574,0.92165224,3173.4,3171.9,0.15868406]
[1768864699877,0.92165224,3173.3,3171.9,0.15868406]
[1768864700079,0.92165224,3173.2,3171.9,0.15868406]
[1768864700279,0.92518045,3173.1,3171.9,0.15868406]
[1768864700586,0.92508614,3173.0,3171.9,0.15868406]
[1768864700773,0.92508614,3172.9,3171.9,0.15868406]
[1768864701078,0.92508614,3172.8,3171.9,0.15868406]
[1768864701280,1.10447034,3173.2,3171.9,0.15868406]
[1768864701675,0.92527399,3173.1,3171.9,0.15868406]
[1768864701874,0.92527399,3173.0,3171.9,0.15868406]
[1768864702078,0.92527399,3172.9,3171.9,0.15868406]
[1768864702278,1.10447034,3173.3,3171.9,0.15868406]
[1768864703378,2.02978055,3173.3,3171.9,0.15868406]
[1768864703581,0.92531021,3173.2,3171.9,0.15868406]
[1768864703784,0.92531021,3173.1,3171.9,0.15868406]
[1768864703983,0.92531021,3173.0,3171.9,0.15868406]
[1768864704182,1.10447034,3173.4,3171.9,0.15868406]
[1768864705889,1.10447034,3173.3,3171.9,0.15868406]
[1768864706484,2.00313681,3173.2,3171.3,0.31430978]
[1768864706676,1.10993176,3173.0,3171.3,0.31430978]
[1768864706882,2.03520232,3172.9,3171.3,0.31430978]
[1768864707089,0.92527056,3172.8,3171.3,0.31430978]
[1768864707288,1.10993176,3172.9,3171.3,0.31430978]
[1768864707289,0.92527056,3172.7,3171.3,0.31430978]
[1768864707587,0.92527056,3172.6,3171.3,0.31430978]
[1768864707783,1.10993176,3173.0,3171.3,0.31430978]
[1768864707988,0.92500657,3172.9,3171.3,0.31430978]
[1768864708185,0.92500657,3172.8,3171.3,0.31430978]
[1768864708490,0.92500657,3172.7,3171.3,0.31430978]
[1768864708688,0.92500657,3172.6,3171.3,0.31430978]
[1768864708890,1.10993176,3173.0,3171.3,0.31430978]
[1768864709092,0.9248331,3172.9,3171.3,0.31430978]
[1768864709295,0.9248331,3172.8,3171.3,0.31430978]
[1768864709492,0.9248331,3172.7,3171.3,0.31430978]
[1768864709693,0.9248331,3172.6,3171.3,0.31430978]
[1768864709897,1.10993176,3173.0,3171.3,0.31430978]
[1768864710089,0.92468231,3172.9,3171.3,0.31430978]
[1768864710289,0.92468231,3172.8,3171.3,0.31430978]
[1768864710588,0.92468231,3172.7,3171.3,0.31430978]
[1768864710787,0.92468231,3172.6,3171.3,0.31430978]
[1768864710994,1.10993176,3173.0,3171.3,0.31430978]
[1768864711187,0.92479243,3172.9,3171.3,0.31430978]
[1768864711389,0.92479243,3172.8,3171.5,0.16006661]
[1768864711591,0.92479243,3172.7,3171.5,0.16006661]
[1768864711788,1.10993176,3173.1,3171.5,0.16006661]
[1768864711983,0.92472539,3173.0,3171.5,0.16006661]
[1768864712187,0.92472539,3172.9,3171.5,0.16006661]
[1768864712388,0.92472539,3172.8,3171.5,0.16006661]
[1768864712682,0.92472539,3172.7,3171.5,0.16006661]
[1768864712884,1.10993176,3173.1,3171.5,0.16006661]
[1768864713088,0.92435241,3173.0,3171.5,0.16006661]
[1768864713288,0.92435241,3172.9,3171.5,0.16006661]
[1768864713489,0.92435241,3172.8,3171.5,0.16006661]
[1768864713691,1.10993176,3173.2,3171.6,0.15654978]
[1768864713893,0.92437401,3173.1,3171.6,0.15654978]
[1768864714094,0.92437401,3173.0,3171.6,0.15654978]
[1768864714294,0.92437401,3172.9,3171.6,0.15654978]
[1768864714494,0.92437401,3172.8,3171.6,0.15654978]
[1768864714696,1.10993176,3173.2,3171.6,0.15654978]
[1768864714896,0.92434387,3173.1,3171.6,0.15654978]
[1768864715095,0.92434387,3173.0,3171.6,0.15654978]
[1768864715297,0.92434387,3172.9,3171.6,0.15654978]
[1768864715491,8.51965128,3173.6,3171.5,0.00351683]
[1768864715492,1.10993176,3172.6,3171.5,0.00351683]
[1768864715694,0.92434387,3172.5,3171.5,0.00351683]
[1768864715893,0.92434387,3172.4,3171.5,0.00351683]
[1768864716099,0.92434387,3172.3,3171.5,0.00351683]
[1768864716300,1.10993176,3172.7,3171.5,0.00351683]
[1768864716594,0.92389454,3172.6,3171.5,0.00351683]
[1768864716802,0.92389454,3172.5,3171.5,0.00351683]
[1768864717000,0.92389454,3172.4,3171.5,0.00351683]
[1768864717201,0.92389454,3172.3,3171.5,0.00351683]
[1768864717502,1.10993176,3172.7,3171.5,0.00351683]
[1768864717697,0.92367209,3172.6,3171.5,0.00351683]
[1768864717903,0.92367209,3172.5,3171.5,0.00351683]
[1768864718101,0.92367209,3172.4,3171.5,0.00351683]
[1768864718302,0.92367209,3172.3,3171.5,0.00351683]
[1768864718494,1.10993176,3172.7,3171.5,0.00351683]
[1768864718703,0.92362271,3172.6,3171.5,0.00351683]
[1768864718898,0.92362271,3172.5,3171.5,0.00351683]
[1768864719097,0.92362271,3172.4,3171.5,0.00351683]
[1768864719299,1.10993176,3172.8,3171.5,0.00351683]
[1768864719605,0.9235547,3172.7,3171.5,0.00351683]
[1768864719796,0.9235547,3172.6,3171.5,0.00351683]
[1768864719996,0.9235547,3172.5,3171.5,0.00351683]
[1768864720203,0.9235547,3172.4,3171.5,0.00351683]
[1768864720396,1.10993176,3172.8,3171.5,0.00351683]
[1768864720597,0.92327212,3172.7,3171.5,0.00351683]
[1768864720899,0.92327212,3172.6,3171.5,0.00351683]
[1768864721099,0.92327212,3172.5,3171.5,0.00351683]
[1768864721300,0.92327212,3172.4,3171.5,0.00351683]
[1768864721601,1.10993176,3172.9,3171.5,0.00351683]
[1768864721807,0.92339474,3172.8,3171.5,0.00351683]
[1768864722105,0.92339474,3172.7,3171.5,0.00351683]
[1768864722305,1.7439751,3173.1,3171.5,0.00351683]
[1768864722306,0.92339474,3172.6,3171.5,0.00351683]
[1768864722499,1.10993176,3173.0,3171.5,0.00351683]
[1768864722709,0.92343499,3172.9,3171.5,0.00351683]
[1768864722905,0.92343499,3172.8,3171.5,0.15756752]
[1768864723102,0.92343499,3172.7,3171.5,0.15756752]
[1768864723405,1.10993176,3173.1,3171.5,0.15756752]
[1768864723598,0.9235814,3173.0,3171.5,0.15756752]
[1768864723794,0.9235814,3172.9,3171.5,0.15756752]
[1768864724005,0.9235814,3172.8,3171.5,0.15756752]
[1768864724207,0.9235814,3172.7,3171.5,0.15756752]
[1768864724410,1.10993176,3173.1,3171.5,0.15756752]
[1768864724616,0.92402827,3173.0,3171.5,0.15756752]
[1768864724816,0.92402827,3172.9,3171.5,0.15756752]
[1768864725013,0.92402827,3172.8,3171.5,0.15756752]
[1768864725216,1.10993176,3173.2,3171.5,0.15756752]
[1768864725416,1.5863051,3173.3,3171.5,0.15756752]
[1768864725417,0.92409484,3173.1,3171.5,0.15756752]
[1768864725611,0.92409484,3173.0,3171.5,0.15756752]
[1768864725806,1.10993176,3173.4,3171.6,3.31175]
[1768864726007,0.92459331,3173.3,3171.7,0.15405069]
[1768864726307,0.92459331,3173.2,3171.7,0.15405069]
[1768864726512,0.92459331,3173.1,3171.7,0.15405069]
[1768864726720,0.92459331,3173.0,3171.7,0.15405069]
[1768864726913,1.10993176,3173.4,3171.7,0.15405069]
[1768864727118,0.92494432,3173.3,3171.7,0.15405069]
[1768864727313,0.92494432,3173.2,3171.7,3.46579069]
[1768864727515,0.92494432,3173.1,3171.8,0.15405069]
[1768864727716,1.10993176,3173.5,3171.9,0.15405069]
[1768864727916,0.92551562,3173.4,3171.9,0.15405069]
[1768864728217,0.92551562,3173.3,3171.9,0.15405069]
[1768864728418,0.92551562,3173.2,3171.9,0.15405069]
[1768864728610,1.10993176,3173.6,3171.9,0.15405069]
[1768864728807,2.03568886,3173.6,3171.9,0.31178069]
[1768864729008,0.9257571,3173.5,3172.0,0.15405069]
[1768864729209,0.9257571,3173.4,3172.1,0.15405069]
[1768864729408,0.9257571,3173.3,3172.1,0.15405069]
[1768864729608,1.10993176,3173.7,3172.1,0.15405069]
[1768864730716,2.03574699,3173.7,3172.1,0.15405069]
[1768864731018,0.92581523,3173.6,3172.1,0.15405069]
[1768864731215,0.92581523,3173.6,3171.5,3.57951683]
[1768864731216,0.92581523,3173.5,3171.6,0.15405069]
[1768864731420,0.92581523,3173.4,3171.6,0.15405069]
[1768864731712,0.92581523,3173.3,3171.6,0.15405069]
[1768864731917,0.92581523,3173.2,3171.6,0.15405069]
[1768864732111,0.92581523,3173.1,3171.6,0.15405069]
[1768864732309,1.10993176,3173.7,3172.0,0.31177069]
[1768864732517,0.9259394,3173.6,3172.2,0.15405069]
[1768864732721,1.10993176,3174.0,3172.2,0.15405069]
[1768864732925,2.03615993,3174.0,3172.2,0.15405069]
[1768864733120,0.92622817,3173.9,3172.3,0.14785509]
[1768864733311,0.92622817,3173.8,3172.3,0.14785509]
[1768864733628,1.10993176,3174.2,3172.5,0.14785509]
[1768864734127,0.92604983,3174.1,3172.6,0.14785509]
[1768864734425,0.92604983,3174.0,3172.6,0.14785509]
[1768864734611,0.00402861,3174.3,3172.6,0.14785509]
[1768864734811,0.92594743,3174.2,3172.7,0.14785509]
[1768864735013,0.00402861,3174.3,3172.7,0.14785509]
[1768864735225,0.92597236,3174.2,3172.7,0.14785509]
[1768864735418,0.00402861,3174.3,3172.7,0.14785509]
[1768864735618,0.00402861,3174.3,3172.7,0.30554509]
[1768864735819,0.00402861,3174.3,3172.8,0.14785509]
[1768864736230,0.92610105,3174.2,3172.5,3.154]
[1768864736530,0.92610105,3174.1,3172.5,3.154]
[1768864736714,0.00402861,3174.3,3172.5,3.154]
[1768864736920,0.92576011,3174.2,3172.5,3.154]
[1768864737127,0.92576011,3174.1,3172.5,3.154]
[1768864737313,0.00402861,3174.3,3172.5,3.154]
[1768864737521,0.92546974,3174.2,3172.5,3.154]
[1768864737721,0.92550292,3174.1,3172.5,3.154]
[1768864737927,0.00402861,3174.3,3172.5,3.154]
[1768864738133,0.92551159,3174.2,3172.5,3.154]
[1768864738315,0.92551523,3174.1,3172.5,0.30555509]
[1768864738521,0.00402861,3174.3,3172.6,0.14785509]
[1768864738721,0.92527238,3174.2,3172.6,0.14785509]
[1768864738930,0.00402861,3174.3,3172.6,0.14785509]
[1768864739126,0.92526812,3174.2,3172.6,0.14785509]
[1768864739329,0.00402861,3174.3,3172.6,0.14785509]
[1768864739633,0.92514194,3174.2,3172.6,0.14785509]
[1768864739823,0.00402861,3174.3,3172.6,0.14785509]
[1768864740025,0.92514963,3174.2,3172.6,0.14785509]
[1768864740333,0.00402861,3174.3,3172.6,0.14785509]
[1768864740523,0.00402861,3174.3,3172.9,0.14785509]
[1768864740828,0.00402861,3174.3,3173.2,0.14785509]
[1768864741022,0.00402861,3174.3,3173.2,0.30552509]
[1768864741223,1.10993176,3175.4,3173.5,0.14785509]
[1768864741421,0.92500498,3175.3,3173.7,0.14785509]
[1768864741623,1.10993176,3175.9,3174.0,0.14785509]
[1768864741829,0.92511783,3175.8,3174.0,0.14785509]
[1768864742129,0.92511783,3175.7,3174.3,0.30546509]
[1768864742330,0.00350718,3175.7,3174.4,0.14785509]
[1768864743433,0.00350718,3175.7,3174.5,0.14785509]
[1768864744033,0.00350718,3175.7,3174.3,0.00326117]
[1768864744530,0.00350718,3175.7,3174.3,0.30872626]
[1768864744733,0.00350718,3175.7,3174.4,0.14785509]
[1768864744921,0.00350718,3175.7,3174.5,0.14785509]
[1768864745523,0.00350718,3175.7,3174.6,3.30085509]
[1768864745825,0.00350718,3175.7,3174.6,0.14785509]
[1768864746428,0.00350718,3175.7,3174.3,0.00326117]
[1768864748236,0.00350718,3175.7,3174.3,0.15111626]
[1768864748625,0.00350718,3175.7,3174.3,0.30872626]
[1768864748829,0.00350718,3175.7,3174.5,0.14785509]
[1768864749030,0.00350718,3175.7,3174.5,0.30545509]
[1768864749234,0.00350718,3175.7,3174.6,0.14785509]
[1768864749432,11.8933051,3177.1,3174.9,0.30543509]
[1768864749433,10.307,3177.1,3174.9,0.30543509]
[1768864749732,0.15749,3176.8,3174.6,0.14785509]
[1768864749932,0.92204382,3176.7,3174.6,0.14785509]
[1768864750131,0.92204382,3176.6,3174.6,0.14785509]
[1768864750439,0.00289554,3176.6,3174.6,0.14785509]
[1768864750628,0.00289554,3176.6,3174.6,0.30545509]
[1768864750829,0.00289554,3176.6,3174.7,0.14785509]
[1768864751538,0.92245658,3176.5,3174.7,0.14785509]
[1768864751842,0.00289554,3176.6,3174.8,0.14785509]
[1768864753534,0.00289554,3176.6,3174.9,0.15758]
[1768864753734,0.00289554,3176.6,3175.0,0.14785509]
[1768864754441,0.00289554,3176.6,3175.3,0.14785509]
[1768864757737,0.16039554,3176.6,3174.8,0.14785509]
[1768864758043,0.15751,3176.3,3174.8,0.14785509]
[1768864758543,0.15751,3176.3,3174.3,0.16087117]
[1768864758735,0.15751,3176.3,3174.4,0.14785509]
[1768864759445,0.92327939,3176.2,3174.4,0.14785509]
[1768864759639,0.15751,3176.3,3174.4,0.14785509]
[1768864759939,0.92325187,3176.2,3174.4,0.14785509]
[1768864760148,0.15751,3176.3,3174.4,0.14785509]
[1768864760348,0.92337489,3176.2,3174.4,0.14785509]
[1768864760644,0.92337489,3176.1,3174.4,0.14785509]
[1768864760846,0.15751,3176.3,3174.4,0.14785509]
[1768864761040,0.92371093,3176.2,3174.4,0.14785509]
[1768864761238,0.92383415,3176.1,3174.4,0.14785509]
[1768864761439,0.15751,3176.3,3174.4,0.14785509]
[1768864761638,0.92428502,3176.2,3174.4,0.14785509]
[1768864761837,0.15751,3176.3,3174.4,0.14785509]
[1768864761838,0.92428502,3176.1,3174.4,0.14785509]
[1768864762040,0.15751,3176.3,3174.4,0.14785509]
[1768864762344,0.92428816,3176.2,3174.4,0.14785509]
[1768864762534,0.92428816,3176.1,3174.4,0.14785509]
[1768864762736,0.92428816,3176.0,3174.4,0.14785509]
[1768864762947,0.15751,3176.3,3174.4,0.14785509]
[1768864763141,0.92491733,3176.2,3174.4,0.14785509]
[1768864763347,0.92491733,3176.1,3174.4,0.14785509]
[1768864765258,0.9259102,3176.0,3174.4,0.14785509]
[1768864765453,0.9259102,3175.9,3174.4,0.14785509]
[1768864765643,0.9259102,3175.8,3174.4,0.14785509]
[1768864765950,0.9259102,3175.7,3174.4,0.14785509]
[1768864766255,0.15752,3176.2,3174.4,0.14785509]
[1768864766457,2.19373254,3176.2,3174.4,0.14785509]
[1768864766650,0.92628078,3176.1,3174.4,0.14785509]
[1768864767451,0.92628078,3176.0,3174.4,0.14785509]
[1768864767652,1.10993176,3176.3,3174.4,0.14785509]
[1768864767653,0.92628078,3175.9,3174.4,0.14785509]
[1768864767853,0.92628078,3175.8,3174.4,0.14785509]
[1768864768153,0.92628078,3175.7,3174.4,0.14785509]
[1768864768350,1.10993176,3176.3,3174.4,0.14785509]
[1768864768548,2.03817968,3176.2,3174.4,0.14785509]